bitfinex-derivatives/quotes_ETHF0:USTF0_20250314
["timestamp","ask_amount","ask_price","bid_price","bid_amount"]
[1741950547209,7.4740787,1899.4,1899.3,0.01729136]
[1741950547410,5.49183665,1899.4,1899.3,0.01729136]
[1741950547710,4.3521,1899.4,1899.3,1.07039136]
[1741950547916,3.6896,1899.4,1899.3,2.45169136]
[1741950548309,3.6896,1899.4,1899.3,3.16009136]
[1741950552511,1.3566,1899.4,1899.3,3.16009136]
[1741950552917,2.40964,1899.4,1899.3,3.16009136]
[1741950553113,1.3566,1899.4,1899.3,3.16009136]
[1741950555421,0.00788001,1899.5,1899.3,2.10699136]
[1741950555723,0.00788001,1899.5,1899.4,5.60104]
[1741950556020,2.1166,1899.6,1899.4,4.548]
[1741950556222,2.1166,1899.6,1899.5,2.41048136]
[1741950557116,1.3895,1899.6,1899.5,2.41048136]
[1741950557316,0.00788001,1899.7,1899.6,1.05293]
[1741950557513,0.00788001,1899.7,1899.6,6.32383]
[1741950558217,0.00788001,1899.7,1899.6,6.34112136]
[1741950559123,0.00788001,1899.7,1899.6,8.84112136]
[1741950559713,0.00788001,1899.7,1899.6,6.34112136]
[1741950567318,1e-08,1899.7,1899.6,14.81912136]
[1741950568629,1.4321,1900.4,1900.3,1.05254]
[1741950568830,1.1107276,1900.7,1900.6,1.05238]
[1741950569024,1.9743574,1900.9,1900.8,1.05227]
[1741950569229,1.9743574,1900.9,1900.8,3.50245306]
[1741950569428,1.9743574,1900.9,1900.8,0.53918547]
[1741950569429,0.713,1900.9,1900.8,0.53918547]
[1741950569930,2.0811,1900.9,1900.8,0.53918547]
[1741950570321,2.0811,1900.9,1900.8,1.86568547]
[1741950570522,0.00788001,1901.0,1900.8,1.3265]
[1741950570721,1.37598001,1901.0,1900.9,2.37871]
[1741950571124,0.00788001,1901.0,1900.9,5.58651]
[1741950572221,0.00788001,1901.0,1900.9,4.26001]
[1741950572424,0.00788001,1901.0,1900.9,1.05221]
[1741950572833,1.46338001,1901.0,1900.9,1.05221]
[1741950574425,1.46338001,1901.0,1900.9,2.36721]
[1741950575438,0.00788001,1901.0,1900.9,2.36721]
[1741950576336,0.00788001,1901.0,1900.9,5.57501]
[1741950579242,0.00788001,1901.0,1900.9,2.61186752]
[1741950579444,0.00788001,1901.0,1900.9,3.66407752]
[1741950580137,0.00788001,1901.0,1900.9,0.89489613]
[1741950582535,0.00788001,1901.0,1900.9,1.93059613]
[1741950586443,0.00788001,1901.0,1900.9,0.89489613]
[1741950587745,0.00788001,1901.0,1900.9,1.93069613]
[1741950589646,0.00788001,1901.0,1900.9,0.89489613]
[1741950592852,1.05221,1900.9,1900.8,7.03022]
[1741950593050,3.83541,1900.9,1900.8,1.05222]
[1741950593852,7.04321,1900.9,1900.8,1.05222]
[1741950594050,5.991,1900.9,1900.7,0.00788001]
[1741950594248,2.49317,1900.8,1900.7,1.06020001]
[1741950594553,2.49317,1900.8,1900.7,0.00788001]
[1741950595353,2.49317,1900.8,1900.7,1.06020001]
[1741950595554,2.49317,1900.8,1900.7,0.00788001]
[1741950596145,2.49317,1900.8,1900.7,1.06020001]
[1741950597656,1.4409,1900.8,1900.7,1.06020001]
[1741950598554,1.4409,1900.8,1900.7,2.77860001]
[1741950600354,0.00788001,1901.0,1900.9,1.05221]
[1741950600546,0.00788001,1901.0,1900.9,5.88221]
[1741950600744,0.00788001,1901.0,1900.9,3.38221]
[1741950602245,0.00788001,1901.0,1900.9,4.41741]
[1741950602850,0.00788001,1901.0,1900.9,12.89541]
[1741950602851,1e-08,1901.0,1900.9,12.89541]
[1741950604959,1e-08,1901.0,1900.9,10.39541]
[1741950606067,1e-08,1901.0,1900.9,12.89541]
[1741950610365,0.01258,1901.5,1901.4,1.05194]
[1741950610567,0.6866,1901.9,1901.8,1.05171]
[1741950611270,0.6866,1901.9,1901.8,2.42771]
[1741950613373,3.21568001,1902.0,1901.8,10.5618]
[1741950613374,0.00788001,1902.0,1901.8,10.5618]
[1741950613567,0.00788001,1902.0,1901.9,2.40966]
[1741950613768,1.33808001,1902.0,1901.9,1.05166]
[1741950614472,1.33808001,1902.0,1901.9,2.40966]
[1741950618069,2.03088001,1902.0,1901.9,2.40966]
[1741950618971,2.03088001,1902.0,1901.9,1.05166]
[1741950619870,1.05166,1901.9,1901.8,5.978]
[1741950620075,2.37256,1901.9,1901.8,5.978]
[1741950622482,1.05171,1901.8,1901.7,0.00788001]
[1741950622770,1.05187,1901.6,1901.5,1.05188]
[1741950622975,1.05187,1901.6,1901.4,1.05189]
[1741950623177,1.3706,1901.5,1901.4,1.05189]
[1741950624779,4.5784,1901.5,1901.4,1.05189]
[1741950625180,1.3706,1901.5,1901.4,1.05189]
[1741950627988,1.3706,1901.5,1901.4,4.25969]
[1741950628176,0.7145,1901.6,1901.5,1.05188]
[1741950628486,0.7145,1901.6,1901.5,3.16778]
[1741950628786,1.4222,1901.7,1901.6,1.05183]
[1741950628982,1.4222,1901.7,1901.6,5.69433]
[1741950630384,1.4222,1901.7,1901.6,10.58063]
[1741950630596,0.00788001,1902.0,1901.7,2.62935]
[1741950630882,0.00788001,1902.0,1901.9,4.25946]
[1741950631084,0.00788001,1902.0,1901.9,6.26266]
[1741950632090,0.00788001,1902.0,1901.9,3.05486]
[1741950632684,0.00788001,1902.0,1901.9,6.26266]
[1741950633891,0.00788001,1902.0,1901.9,11.14896]
[1741950634203,0.00788001,1902.0,1901.9,9.82476]
[1741950634586,0.00788001,1902.0,1901.9,11.13676]
[1741950635296,0.19092001,1902.1,1902.0,1.0516]
[1741950635496,0.6879,1902.3,1902.2,1.05149]
[1741950636196,0.6879,1902.3,1902.2,2.44429]
[1741950638186,0.6879,1902.3,1902.2,1.05149]
[1741950638391,3.8957,1902.3,1902.0,6.2791]
[1741950638595,3.2078,1902.1,1902.0,5.93788]
[1741950638991,5.63025,1902.1,1901.8,1.3928]
[1741950639187,1.3294,1902.0,1901.9,1.05166]
[1741950639995,0.6879,1902.3,1901.9,1.05166]
[1741950640299,3.8957,1902.3,1902.2,1.05149]
[1741950641397,5.2251,1902.3,1902.2,1.05149]
[1741950641898,6.27658,1902.3,1902.1,2.50313]
[1741950642090,1.3294,1902.2,1902.1,1.05153]
[1741950642588,2.38092,1902.2,1902.0,2.50318]
[1741950642892,1.3294,1902.2,1902.1,1.05155]
[1741950643086,4.94716,1902.3,1902.1,1.05155]
[1741950643899,4.94716,1902.3,1902.2,1.05149]
[1741950644196,3.8957,1902.3,1902.2,1.05149]
[1741950644696,3.2078,1902.3,1902.2,1.05149]
[1741950645095,3.2078,1902.3,1902.2,2.41419]
[1741950645495,0.00788001,1902.4,1902.3,1.05144]
[1741950645896,0.00788001,1902.4,1902.3,4.25924]
[1741950647597,1.05926001,1902.4,1902.3,1.05144]
[1741950647893,1.05926001,1902.4,1902.2,1.05145]
[1741950648091,0.6706,1902.3,1902.2,1.05145]
[1741950649596,1.72206,1902.3,1902.2,1.05149]
[1741950649800,0.00788001,1902.4,1902.3,1.05144]
[1741950650489,1.05926001,1902.4,1902.3,1.3926]
[1741950651199,0.00788001,1902.4,1902.3,2.44404]
[1741950651398,1.05926001,1902.4,1902.3,2.44404]
[1741950651593,0.00788001,1902.4,1902.3,2.44404]
[1741950656803,0.00788001,1902.4,1902.3,1.05144]
[1741950657207,1.05926001,1902.4,1902.3,1.05144]
[1741950657807,0.00788001,1902.4,1902.3,1.05144]
[1741950658006,1.05926001,1902.4,1902.3,1.05144]
[1741950658201,0.00788001,1902.4,1902.3,1.05144]
[1741950658507,1.05926001,1902.4,1902.3,1.05144]
[1741950658804,2.50996001,1902.4,1902.3,1.05144]
[1741950659207,1.45858001,1902.4,1902.3,1.05144]
[1741950659601,1.45858001,1902.4,1902.3,1.75954]
[1741950660101,0.00788001,1902.4,1902.3,1.75954]
[1741950660304,1.45858001,1902.4,1902.3,1.75954]
[1741950660701,1.45858001,1902.4,1902.3,1.05144]
[1741950664723,12.12197001,1902.4,1901.7,3.2078]
[1741950665004,4.25933,1902.2,1902.1,1.05155]
[1741950665207,4.25933,1902.2,1901.9,1.3567]
[1741950665406,2.038,1902.1,1901.9,1.3567]
[1741950665607,4.5773,1902.0,1901.8,1.05169]
[1741950665811,1.3695,1901.9,1901.8,1.05169]
[1741950666016,2.42116,1901.9,1901.8,1.05169]
[1741950666211,1.3695,1901.9,1901.8,1.05169]
[1741950666507,1.3695,1901.9,1901.8,2.40839]
[1741950668206,1.05047392,1902.2,1902.1,1.05155]
[1741950668605,4.6237,1902.3,1902.2,1.05149]
[1741950668815,5.67514,1902.3,1902.2,1.05149]
[1741950669208,1.05149,1902.2,1902.1,2.45813]
[1741950669510,1.4159,1902.2,1902.1,2.45813]
[1741950671402,3.2078,1902.3,1902.1,1.4066]
[1741950671603,4.6211,1902.3,1902.2,2.42979]
[1741950673216,1.06019785,1902.4,1902.3,1.05144]
[1741950673410,1.06019785,1902.4,1902.3,3.12474]
[1741950674014,0.00788001,1902.4,1902.3,3.12474]
[1741950675911,0.00788001,1902.4,1902.3,6.33254]
[1741950676107,3.2078,1902.8,1902.7,1.05122]
[1741950677316,1.3669,1902.9,1902.8,1.05116]
[1741950677317,1.37478001,1902.9,1902.8,1.05116]
[1741950678611,1.05116,1902.8,1902.7,1.3818]
[1741950678808,3.9233,1902.8,1902.7,1.05122]
[1741950679206,3.9233,1902.8,1902.7,2.38032]
[1741950679414,5.3006,1902.8,1902.7,2.38032]
[1741950681616,6.35176,1902.8,1902.7,2.38032]
[1741950681919,6.35176,1902.8,1902.7,1.05122]
[1741950682714,5.3006,1902.8,1902.6,0.00788001]
[1741950682920,6.2493,1902.8,1902.7,1.05122]
[1741950683125,7.30046,1902.8,1902.7,1.05122]
[1741950683419,6.2493,1902.8,1902.7,1.05122]
[1741950684109,6.2493,1902.8,1902.7,2.38982]
[1741950685010,5.5338,1902.8,1902.7,2.38982]
[1741950685710,6.58496,1902.8,1902.7,2.38982]
[1741950686321,6.58496,1902.8,1902.6,0.00788001]
[1741950686523,6.58496,1902.8,1902.7,1.05122]
[1741950691723,5.5338,1902.8,1902.6,0.00788001]
[1741950691924,1.05122,1902.7,1902.6,0.00788001]
[1741950692125,1.73662,1902.7,1902.6,1.05915001]
[1741950692326,1.05122,1902.7,1902.6,1.05915001]
[1741950692516,6.58502,1902.8,1902.7,1.05122]
[1741950692722,6.58502,1902.8,1902.7,1.4443]
[1741950693318,7.58872578,1902.8,1902.7,2.49552]
[1741950693519,6.58502,1902.8,1902.7,2.49552]
[1741950694825,6.58502,1902.8,1902.7,1.4443]
[1741950695329,1.05122,1902.7,1902.6,2.41103001]
[1741950695530,1.05122,1902.7,1902.6,1.35978001]
[1741950696125,1.05122,1902.7,1902.6,2.41105001]
[1741950698830,2.47212,1902.7,1902.6,2.41105001]
[1741950704133,1.4209,1902.7,1902.6,2.41105001]
[1741950705227,2.47212,1902.7,1902.6,2.41105001]
[1741950705526,1.4209,1902.7,1902.6,2.41105001]
[1741950706034,4.25901,1902.8,1902.7,1.05122]
[1741950706035,6.10178712,1902.8,1902.7,1.05122]
[1741950706230,4.25832916,1902.8,1902.7,3.06112]
[1741950706631,3.2078,1902.8,1902.7,3.06112]
[1741950707833,0.00788001,1902.9,1902.8,1.05116]
[1741950708041,0.00788001,1902.9,1902.8,3.04216]
[1741950708637,3.21568001,1902.9,1902.8,3.04216]
[1741950708837,4.61158001,1902.9,1902.8,3.04216]
[1741950713746,4.61158001,1902.9,1902.6,0.00788001]
[1741950713937,1.3488,1902.8,1902.7,1.3749]
[1741950714242,2.39999,1902.8,1902.7,2.42609]
[1741950714746,1.3488,1902.8,1902.7,2.42609]
[1741950717741,2.39996,1902.8,1902.7,2.42609]
[1741950718744,2.39996,1902.8,1902.7,1.3749]
[1741950718943,2.39996,1902.8,1902.7,2.42612]
[1741950719244,1.3488,1902.8,1902.7,2.42612]
[1741950721449,2.39996,1902.8,1902.7,2.42612]
[1741950725153,1.05122,1902.7,1902.6,0.00788001]
[1741950725346,7.99482,1902.7,1902.6,0.00788001]
[1741950726353,1.05133,1902.5,1902.4,1.05135]
[1741950726542,4.25913,1902.5,1902.4,2.40905]
[1741950726947,4.6186,1902.5,1902.4,2.40905]
[1741950727147,3.57369304,1902.6,1902.5,1.05133]
[1741950727348,3.2078,1902.7,1902.6,1.05127]
[1741950727656,4.25902,1902.7,1902.6,1.05127]
[1741950727955,5.62492,1902.7,1902.6,1.05127]
[1741950728162,5.62492,1902.7,1902.6,1.73507]
[1741950728452,4.5737,1902.7,1902.6,3.05837]
[1741950730265,3.2078,1902.7,1902.6,3.05837]
[1741950737652,1.46298001,1902.9,1902.8,1.05116]
[1741950737858,0.00788001,1902.9,1902.8,1.05116]
[1741950738461,1.36768001,1902.9,1902.8,1.05116]
[1741950738854,0.00788001,1902.9,1902.8,1.05116]
[1741950740164,1.37248001,1902.9,1902.8,1.05116]
[1741950740963,0.00788001,1902.9,1902.8,1.05116]
[1741950741957,1.37248001,1902.9,1902.8,1.05116]
[1741950742661,2.42359001,1902.9,1902.8,1.05116]
[1741950742964,3.09053001,1902.9,1902.8,1.05116]
[1741950743170,1.37248001,1902.9,1902.8,1.05116]
[1741950743767,0.00788001,1902.9,1902.8,1.05116]
[1741950744663,0.00788001,1902.9,1902.8,2.48896]
[1741950751276,0.00788001,1902.9,1902.8,5.69676]
[1741950751570,3.3738,1903.5,1902.8,5.69676]
[1741950751571,1.3509,1903.3,1903.2,1.05094]
[1741950751767,0.7195,1903.5,1903.4,1.05083]
[1741950751966,2.0572,1903.5,1903.4,1.05083]
[1741950752568,1.3377,1903.5,1903.4,1.05083]
[1741950752770,1.3377,1903.5,1903.4,1.75643]
[1741950754664,1.3377,1903.5,1903.4,1.05083]
[1741950755166,4.5455,1903.5,1903.4,1.05083]
[1741950755368,5.2676,1903.5,1903.4,1.05083]
[1741950755871,5.2676,1903.5,1903.4,2.37423]
[1741950758573,6.31838,1903.5,1903.1,2.62745]
[1741950758773,1.4484,1903.4,1903.3,1.05086]
[1741950761564,1.3838,1903.5,1903.4,1.05083]
[1741950761764,0.00788001,1903.6,1903.5,1.05078]
[1741950761961,1.39168001,1903.6,1903.5,1.05078]
[1741950762161,1.39168001,1903.6,1903.5,2.38958]
[1741950763272,1.39168001,1903.6,1903.5,1.05078]
[1741950763475,2.04988001,1903.6,1903.5,1.05078]
[1741950763879,2.04988001,1903.6,1903.4,0.00788001]
[1741950764066,4.5443,1903.5,1903.4,1.05871001]
[1741950765479,1.3365,1903.5,1903.4,1.05871001]
[1741950768279,4.5443,1903.5,1903.4,1.05871001]
[1741950770477,5.59508,1903.5,1903.4,1.05871001]
[1741950770683,3.2078,1903.5,1903.4,1.05871001]
[1741950770876,4.6524,1903.5,1903.4,1.05871001]
[1741950771778,5.3206,1903.5,1903.4,1.05871001]
[1741950774678,4.6524,1903.5,1903.4,1.05871001]
[1741950778184,1.4446,1903.5,1903.4,1.05871001]
[1741950778381,4.6524,1903.5,1903.4,1.05871001]
[1741950779783,5.70318,1903.5,1903.4,0.00788001]
[1741950780083,1.05096,1903.2,1903.1,1.05098]
[1741950780284,4.25876,1903.2,1903.1,1.05098]
[1741950780482,4.25876,1903.2,1902.9,2.0964]
[1741950780786,3.1191,1903.1,1903.0,1.05101]
[1741950781490,4.9407932,1903.1,1903.0,1.05101]
[1741950781677,4.9407932,1903.1,1903.0,2.42151]
[1741950781882,5.99165745,1903.1,1903.0,2.42151]
[1741950784481,5.99165745,1903.1,1903.0,1.3705]
[1741950784691,1.05105,1903.0,1902.9,0.00788001]
[1741950784889,6.34865,1903.0,1902.9,0.00788001]
[1741950786891,1.05122,1902.7,1902.6,1.05123]
[1741950787087,3.2078,1902.7,1902.6,1.05123]
[1741950787394,1.05127,1902.6,1902.5,2.47263]
[1741950787585,2.41057,1902.6,1902.5,2.47263]
[1741950788183,1.05133,1902.5,1902.4,0.00788001]
[1741950788483,5.70413,1902.5,1902.4,0.00788001]
[1741950788887,5.79066934,1902.5,1902.4,0.00788001]
[1741950789187,4.73933934,1902.5,1902.4,0.00788001]
[1741950789394,5.70413,1902.5,1902.4,1.05926001]
[1741950789590,4.6528,1902.5,1902.4,1.76906001]
[1741950790291,6.41363,1902.5,1902.4,1.76906001]
[1741950791091,5.3623,1902.5,1902.4,1.76906001]
[1741950791590,4.6528,1902.5,1902.4,1.76906001]
[1741950791895,3.2078,1902.5,1902.4,2.49566001]
[1741950792185,0.00788001,1902.6,1902.5,1.05133]
[1741950792390,0.00788001,1902.6,1902.5,2.48243]
[1741950792580,3.2078,1903.0,1902.5,2.48243]
[1741950792778,3.2078,1903.0,1902.9,1.05111]
[1741950792979,4.5186,1903.0,1902.9,1.05111]
[1741950793587,3.2078,1903.0,1902.9,1.05111]
[1741950794090,3.2078,1903.0,1902.9,2.48221]
[1741950794591,1.31868001,1903.1,1903.0,1.05105]
[1741950794592,0.00788001,1903.1,1903.0,1.05105]
[1741950794796,3.2078,1903.5,1903.4,1.05083]
[1741950795091,4.6245,1903.7,1903.6,1.05072]
[1741950796494,4.6245,1903.7,1903.6,2.36302]
[1741950796990,5.67516,1903.7,1903.6,1.3123]
[1741950797197,4.6245,1903.7,1903.6,2.36302]
[1741950797492,4.6245,1903.7,1903.6,1.3123]
[1741950797700,5.67516,1903.7,1903.6,1.3123]
[1741950797900,5.67516,1903.7,1903.6,2.36302]
[1741950798100,1.05072,1903.6,1903.5,0.00788001]
[1741950798399,2.49742,1903.6,1903.5,0.00788001]
[1741950798799,2.49742,1903.6,1903.5,1.34038001]
[1741950799398,2.49742,1903.6,1903.5,0.00788001]
[1741950799896,2.49742,1903.6,1903.5,1.05866001]
[1741950800390,2.49742,1903.6,1903.5,0.00788001]
[1741950800594,3.15682,1903.6,1903.5,0.00788001]
[1741950801498,4.69258604,1903.6,1902.6,4.95015]
[1741950801696,1.05109,1903.0,1902.9,1.05108]
[1741950801890,3.2078,1903.0,1902.9,1.05108]
[1741950802087,2.49246,1903.1,1903.0,1.05105]
[1741950802397,1.05107,1903.0,1902.9,1.05106]
[1741950802609,1.4414,1903.0,1902.7,1.3453]
[1741950802796,1.05114,1902.9,1902.8,1.05901001]
[1741950803098,4.25894,1902.9,1902.8,1.05901001]
[1741950803402,3.2078,1902.9,1902.8,1.05901001]
[1741950804304,3.2078,1903.3,1903.2,1.05094]
[1741950804600,5.57838,1903.5,1903.4,1.05083]
[1741950804794,5.57838,1903.5,1903.1,5.36343]
[1741950805000,5.57838,1903.5,1903.3,1.05084]
[1741950805299,5.57838,1903.5,1903.4,1.3314]
[1741950805499,1.05089,1903.3,1903.2,1.05091]
[1741950805698,4.25869,1903.3,1903.2,2.38231]
[1741950805897,1.05094,1903.2,1903.1,0.7]
[1741950806102,2.37074,1903.2,1903.1,0.7]
[1741950806301,1.051,1903.1,1903.0,1.05102]
[1741950806496,1.4353,1903.1,1903.0,1.05102]
[1741950806698,2.4863,1903.1,1903.0,1.05102]
[1741950806899,1.4353,1903.1,1902.9,1.3314]
[1741950807100,1.05105,1903.0,1902.9,1.3314]
[1741950807305,4.6431,1903.1,1902.9,1.3314]
[1741950807506,1.05105,1903.0,1902.9,2.38245]
[1741950807803,2.48635,1903.0,1902.9,2.38245]
[1741950808408,2.48635,1903.0,1902.9,1.3314]
[1741950808601,2.48635,1903.0,1902.9,2.38251]
[1741950809403,1.4353,1903.0,1902.9,2.38251]
[1741950809605,4.25882,1903.1,1902.9,1.3314]
[1741950809806,5.65652,1903.1,1902.9,2.38246]
[1741950810001,4.6055,1903.1,1903.0,1.05105]
[1741950810210,3.2078,1903.3,1903.2,1.05094]
[1741950810505,4.6055,1903.3,1903.2,1.05094]
[1741950810712,1.05094,1903.2,1903.1,1.05097]
[1741950810905,1.3977,1903.2,1903.1,1.05097]
[1741950811906,2.44864,1903.2,1903.1,1.051]
[1741950812603,1.3977,1903.2,1903.1,1.051]
[1741950812811,2.44864,1903.2,1903.1,1.051]
[1741950813395,3.2078,1903.4,1903.1,1.051]
[1741950813709,4.6034,1903.4,1903.3,1.05089]
[1741950814207,4.6034,1903.4,1903.3,2.40329]
[1741950814407,3.2078,1903.4,1903.3,2.40329]
[1741950814817,7.3516,1903.6,1903.5,1.05078]
[1741950815107,0.00788001,1903.8,1903.7,1.05066]
[1741950815306,4.26629001,1903.8,1903.7,1.05066]
[1741950815610,3.21568001,1903.8,1903.3,4.25869]
[1741950815909,3.21568001,1903.8,1903.6,1.05072]
[1741950815910,1.0507,1903.7,1903.6,1.05072]
[1741950816405,1.05076,1903.6,1903.5,1.05076]
[1741950816611,3.2078,1903.6,1903.5,1.05076]
[1741950817111,4.5307,1903.6,1903.5,1.05076]
[1741950817500,1.05078,1903.5,1903.4,2.37572]
[1741950817704,3.07418,1903.5,1903.4,1.05082]
[1741950821116,2.0234,1903.5,1903.4,1.05082]
[1741950822008,3.07418,1903.5,1903.4,1.05082]
[1741950824209,1.05083,1903.4,1903.3,2.37573]
[1741950824416,3.18533,1903.4,1903.3,2.37573]
[1741950825213,2.1345,1903.4,1903.3,2.37573]
[1741950825420,3.18533,1903.4,1903.3,2.37573]
[1741950826110,6.39313,1903.4,1903.3,2.37573]
[1741950826409,6.39313,1903.4,1903.3,1.3249]
[1741950826611,1.05098,1903.2,1903.1,1.05096]
[1741950826911,1.051,1903.1,1903.0,2.41391]
[1741950827105,3.0246,1903.1,1903.0,2.41391]
[1741950827309,1.05105,1903.0,1902.9,1.05106]
[1741950827512,5.57165,1903.0,1902.9,1.05106]
[1741950827917,1.05111,1902.9,1902.8,2.42190001]
[1741950828116,1.4368,1902.9,1902.4,2.62846]
[1741950828313,4.25901,1902.8,1902.7,1.0512]
[1741950828820,1.05122,1902.7,1902.6,2.46022]
[1741950829025,1.4368,1902.7,1902.6,2.46022]
[1741950831424,2.48802,1902.7,1902.6,1.409]
[1741950831625,3.14952,1902.7,1902.6,1.409]
[1741950831823,3.14952,1902.7,1902.6,2.46027]
[1741950831824,2.0983,1902.7,1902.6,2.46027]
[1741950832126,3.14952,1902.7,1902.6,2.46027]
[1741950833323,2.0983,1902.7,1902.6,2.46027]
[1741950834031,3.14952,1902.7,1902.6,2.46027]
[1741950835225,1.05127,1902.6,1902.5,0.00788001]
[1741950835416,5.67217,1902.6,1902.5,0.00788001]
[1741950835624,4.6209,1902.6,1902.0,5.83682]
[1741950835927,1.05146,1902.3,1902.2,2.48537]
[1741950836128,1.05146,1902.3,1902.2,1.4339]
[1741950836428,4.25926,1902.3,1902.2,1.4339]
[1741950836729,3.2078,1902.3,1901.8,3.3518]
[1741950836931,3.12512,1902.2,1902.1,1.05943001]
[1741950837722,3.2078,1902.3,1902.1,0.00788001]
[1741950837923,3.2078,1902.3,1902.2,1.05149]
[1741950838130,3.2078,1902.3,1902.2,3.78739]
[1741950838430,3.9035,1902.5,1902.4,1.05138]
[1741950838627,5.2737,1902.5,1902.4,1.05138]
[1741950839025,6.32503,1902.5,1902.4,1.05138]
[1741950839226,5.2737,1902.5,1902.3,2.36321]
[1741950839428,2.42158,1902.4,1902.3,2.36321]
[1741950839729,2.42158,1902.4,1902.3,2.36324]
[1741950840432,1.3702,1902.4,1902.3,2.36324]
[1741950840839,2.42158,1902.4,1902.3,2.36324]
[1741950841039,2.42158,1902.4,1902.3,1.3118]
[1741950842439,2.42158,1902.4,1902.3,2.36324]
[1741950842946,1.3702,1902.4,1902.3,2.36324]
[1741950843537,2.42158,1902.4,1902.3,2.36324]
[1741950844640,2.42158,1902.4,1902.3,1.3118]
[1741950844853,1.05144,1902.3,1902.2,1.76275]
[1741950845145,5.65934,1902.3,1902.2,3.13765]
[1741950845539,4.6079,1902.3,1902.2,3.13765]
[1741950846042,5.65934,1902.3,1902.2,3.13765]
[1741950846345,4.6079,1902.3,1902.2,3.13765]
[1741950846550,3.2078,1902.3,1902.2,3.13765]
[1741950846745,3.2078,1902.6,1902.5,1.05133]
[1741950846950,3.2078,1902.6,1902.5,3.20713]
[1741950847643,4.64568001,1902.8,1902.7,1.05122]
[1741950847842,3.21568001,1902.8,1902.7,1.05122]
[1741950848141,7.152,1903.4,1903.0,1.05105]
[1741950848142,3.2078,1903.1,1903.0,1.05105]
[1741950848544,3.2078,1903.1,1902.9,1.4433]
[1741950848751,2.48105,1903.0,1902.9,1.4433]
[1741950849044,3.18285,1903.0,1902.9,1.4433]
[1741950850046,1.05118,1902.8,1902.4,5.5298]
[1741950850353,4.25898,1902.8,1902.6,1.05124]
[1741950850548,1.396,1902.7,1902.6,1.05124]
[1741950852049,3.2078,1902.9,1902.6,2.62819]
[1741950852250,0.7018,1903.0,1902.6,2.62819]
[1741950852445,2.1161,1903.0,1902.9,1.05111]
[1741950852851,2.1161,1903.0,1902.6,3.2078]
[1741950853046,2.46545,1902.9,1902.8,0.7035]
[1741950853243,5.67325,1902.9,1902.8,0.7035]
[1741950853752,0.7018,1903.0,1902.8,0.7035]
[1741950853953,2.1161,1903.0,1902.9,1.05111]
[1741950854154,3.21568001,1903.1,1902.8,0.7035]
[1741950854359,3.21568001,1903.1,1903.0,1.05105]
[1741950855255,4.26668001,1903.1,1902.9,1.05106]
[1741950855558,1.4147,1903.0,1902.9,1.05111]
[1741950857055,3.21568001,1903.1,1902.8,0.7035]
[1741950857256,3.21568001,1903.1,1903.0,1.05105]
[1741950857656,4.63038001,1903.1,1903.0,1.05105]
[1741950858755,5.68138001,1903.1,1903.0,1.05105]
[1741950859251,4.63038001,1903.1,1903.0,1.05105]
[1741950860748,5.68138001,1903.1,1903.0,1.05105]
[1741950862658,4.63038001,1903.1,1902.8,0.7035]
[1741950862859,4.63038001,1903.1,1902.9,1.05111]
[1741950862860,1.3535,1903.0,1902.9,1.05111]
[1741950864153,3.21568001,1903.1,1903.0,1.05105]
[1741950866154,4.26668001,1903.1,1903.0,1.05105]
[1741950866855,0.00788001,1903.1,1903.0,1.05105]
[1741950867359,4.26668001,1903.1,1903.0,1.05105]
[1741950867556,2.49708001,1903.1,1903.0,1.05105]
[1741950867858,4.65388001,1903.1,1903.0,1.05105]
[1741950868357,5.70488001,1903.1,1903.0,1.05105]
[1741950869159,4.65388001,1903.1,1903.0,1.05105]
[1741950870959,1.44608001,1903.1,1903.0,1.05105]
[1741950872564,0.00788001,1903.1,1903.0,1.05105]
[1741950873961,3.2078,1903.3,1903.2,1.05094]
[1741950874673,3.2078,1903.3,1903.2,1.71794]
[1741950876066,3.2078,1903.3,1903.2,1.05094]
[1741950876260,1.05094,1903.2,1903.1,2.38147001]
[1741950876570,2.49424,1903.2,1903.1,2.38147001]
[1741950876760,1.4433,1903.2,1903.1,2.38147001]
[1741950881165,2.49424,1903.2,1903.1,2.38147001]
[1741950881668,2.49424,1903.2,1903.1,0.00788001]
[1741950882370,5.00762768,1903.3,1903.1,0.00788001]
[1741950882569,3.2078,1903.3,1903.1,0.00788001]
[1741950882765,3.19044,1903.2,1903.1,1.05883001]
[1741950883163,3.19044,1903.2,1903.1,0.00788001]
[1741950883461,3.19044,1903.2,1903.1,1.05888001]
[1741950886967,3.19044,1903.2,1903.1,0.00788001]
[1741950887971,3.19044,1903.2,1903.1,1.05888001]
[1741950889672,3.19044,1903.2,1903.1,0.00788001]
[1741950890071,3.19044,1903.2,1903.1,1.05888001]
[1741950890277,3.19044,1903.2,1903.1,2.46798001]
[1741950890979,3.19044,1903.2,1902.7,0.6584]
[1741950890980,4.76698,1903.2,1902.7,0.6584]
[1741950891181,1.05116,1902.9,1902.8,1.4091]
[1741950891381,1.05123,1902.8,1902.7,1.05119]
[1741950891676,3.8784,1902.8,1902.2,4.94873]
[1741950891879,4.25918,1902.5,1902.4,1.05132]
[1741950892077,1.05148,1902.3,1902.2,1.05148]
[1741950892278,2.0161,1902.4,1902.2,1.3569]
[1741950892475,1.76611001,1902.4,1902.3,1.05144]
[1741950893880,1.05931001,1902.4,1902.3,1.05144]
[1741950894385,0.00788001,1902.4,1902.3,1.05144]
[1741950895178,0.00788001,1902.4,1902.2,1.3569]
[1741950895386,3.2078,1902.3,1902.2,1.3569]
[1741950895587,3.9231,1902.3,1902.2,2.40839]
[1741950896286,4.97454,1902.3,1902.2,2.40839]
[1741950898084,4.97454,1902.3,1902.2,1.3569]
[1741950898280,1.05149,1902.2,1902.1,0.00788001]
[1741950899284,3.37149,1902.2,1902.1,0.00788001]
[1741950899481,1.05173,1901.8,1901.4,7.51614]